[Event "Late-Titled-Tuesday-Blitz-February-27-2024"]
[Site "Chess.com"]
[Date "2024.02.27"]
[Round "5"]
[White "bancsoo"]
[Black "TomsKantans"]
[Result "1-0"]
[WhiteElo "2897"]
[BlackElo "2670"]
[TimeControl "180+1"]
[EndTime "14:55:30 PST"]
[Termination "bancsoo won on time"]

1. Nf3 {[%clk 0:03:00.9]} 1... c5 {[%clk 0:02:58.9]} 2. c4 {[%clk 0:03:00.1]}
2... Nc6 {[%clk 0:02:56.5]} 3. Nc3 {[%clk 0:03:00.1]} 3... e5 {[%clk 0:02:55.7]}
4. g3 {[%clk 0:03:00.1]} 4... g6 {[%clk 0:02:54.9]} 5. Bg2 {[%clk 0:03:00.7]}
5... Bg7 {[%clk 0:02:55.6]} 6. O-O {[%clk 0:03:01.4]} 6... Nge7 {[%clk
0:02:55.6]} 7. a3 {[%clk 0:03:02.1]} 7... d6 {[%clk 0:02:52.6]} 8. Rb1 {[%clk
0:03:02.1]} 8... a5 {[%clk 0:02:52.6]} 9. d3 {[%clk 0:03:02.5]} 9... O-O {[%clk
0:02:52.1]} 10. Bd2 {[%clk 0:03:03.1]} 10... Be6 {[%clk 0:02:44.5]} 11. Ng5
{[%clk 0:03:02.7]} 11... Bd7 {[%clk 0:02:44]} 12. Nd5 {[%clk 0:02:51.6]} 12...
Rb8 {[%clk 0:02:40.1]} 13. b4 {[%clk 0:02:40]} 13... axb4 {[%clk 0:02:39.4]} 14.
axb4 {[%clk 0:02:40.2]} 14... Nxb4 {[%clk 0:02:25.5]} 15. Nxb4 {[%clk
0:02:36.4]} 15... cxb4 {[%clk 0:02:24.6]} 16. Bxb4 {[%clk 0:02:36.5]} 16... Nc6
{[%clk 0:02:16]} 17. Ne4 {[%clk 0:02:21.5]} 17... Nxb4 {[%clk 0:02:14.6]} 18.
Rxb4 {[%clk 0:02:22.4]} 18... Bc6 {[%clk 0:02:11.3]} 19. Nc3 {[%clk 0:02:17.2]}
19... Qa5 {[%clk 0:02:04.1]} 20. Qb3 {[%clk 0:02:15.2]} 20... Ra8 {[%clk
0:02:04.2]} 21. Rb1 {[%clk 0:02:09.9]} 21... h5 {[%clk 0:01:45.1]} 22. Rb6
{[%clk 0:01:52.4]} 22... Rfc8 {[%clk 0:01:30.8]} 23. Nd5 {[%clk 0:01:48.5]}
23... Bf8 {[%clk 0:01:29.6]} 24. h4 {[%clk 0:01:40.9]} 24... Qa2 {[%clk
0:01:25.6]} 25. Bf3 {[%clk 0:01:30.5]} 25... Qd2 {[%clk 0:01:13.7]} 26. Qb2
{[%clk 0:01:17.3]} 26... Qxb2 {[%clk 0:01:01.3]} 27. R1xb2 {[%clk 0:01:18.2]}
27... Ra1+ {[%clk 0:00:56.2]} 28. Kg2 {[%clk 0:01:18.4]} 28... Kg7 {[%clk
0:00:56]} 29. Nb4 {[%clk 0:01:14.5]} 29... e4 {[%clk 0:00:45.6]} 30. dxe4 {[%clk
0:01:00.9]} 30... Rc1 {[%clk 0:00:45.2]} 31. Nxc6 {[%clk 0:00:56.6]} 31... bxc6
{[%clk 0:00:39.7]} 32. Rb7 {[%clk 0:00:56.8]} 32... Rxc4 {[%clk 0:00:26.5]} 33.
Rd7 {[%clk 0:00:56]} 33... Kg8 {[%clk 0:00:14.4]} 34. Rbb7 {[%clk 0:00:55.8]}
34... f6 {[%clk 0:00:14.8]} 35. Rf7 {[%clk 0:00:55.8]} 1-0

[Event "Late-Titled-Tuesday-Blitz-February-27-2024"]
[Site "Chess.com"]
[Date "2024.02.27"]
[Round "5"]
[White "HeinichessPY"]
[Black "giomar27"]
[Result "1-0"]
[WhiteElo "2249"]
[BlackElo "2395"]
[TimeControl "180+1"]
[EndTime "14:55:31 PST"]
[Termination "HeinichessPY won by resignation"]

1. c4 {[%clk 0:02:55.1]} 1... b6 {[%clk 0:02:55.8]} 2. Nf3 {[%clk 0:02:54.2]}
2... Bb7 {[%clk 0:02:56.1]} 3. Nc3 {[%clk 0:02:53.4]} 3... c5 {[%clk 0:02:53.3]}
4. d4 {[%clk 0:02:51.4]} 4... cxd4 {[%clk 0:02:52.6]} 5. Nxd4 {[%clk 0:02:48.6]}
5... e6 {[%clk 0:02:49.6]} 6. e4 {[%clk 0:02:48.1]} 6... Nf6 {[%clk 0:02:46.6]}
7. f3 {[%clk 0:02:47.8]} 7... Bb4 {[%clk 0:02:40.6]} 8. Be2 {[%clk 0:02:42.5]}
8... d5 {[%clk 0:02:31.2]} 9. Qa4+ {[%clk 0:02:36.2]} 9... Nc6 {[%clk
0:02:17.7]} 10. Nxc6 {[%clk 0:02:34.5]} 10... Bxc3+ {[%clk 0:02:18.1]} 11. bxc3
{[%clk 0:02:32.9]} 11... Qd7 {[%clk 0:02:18.8]} 12. cxd5 {[%clk 0:02:31.2]}
12... exd5 {[%clk 0:02:14.6]} 13. Bb5 {[%clk 0:02:29.3]} 13... a6 {[%clk
0:02:15]} 14. Ne5 {[%clk 0:01:35.9]} 14... Qxb5 {[%clk 0:02:11.8]} 15. Qxb5+
{[%clk 0:01:34.4]} 15... axb5 {[%clk 0:02:12.7]} 16. Bg5 {[%clk 0:01:32]} 16...
dxe4 {[%clk 0:02:08.3]} 17. fxe4 {[%clk 0:01:26]} 17... Nxe4 {[%clk 0:02:07.7]}
18. Be3 {[%clk 0:01:17.8]} 18... O-O {[%clk 0:01:56.4]} 19. O-O {[%clk
0:01:18.3]} 19... Nxc3 {[%clk 0:01:51.6]} 20. Bxb6 {[%clk 0:01:11.2]} 20... Nd5
{[%clk 0:01:51.3]} 21. Bc5 {[%clk 0:01:09.8]} 21... Rfc8 {[%clk 0:01:45]} 22.
Rxf7 {[%clk 0:01:08.7]} 22... Rxc5 {[%clk 0:01:40.3]} 23. Rxb7 {[%clk
0:01:09.1]} 23... Ne3 {[%clk 0:01:35.1]} 24. Nd3 {[%clk 0:00:42]} 24... Rc2
{[%clk 0:01:29.3]} 25. Ne1 {[%clk 0:00:34.4]} 25... Re2 {[%clk 0:01:26.4]} 26.
Rc1 {[%clk 0:00:34.5]} 26... h6 {[%clk 0:01:22.8]} 27. Rcc7 {[%clk 0:00:30.7]}
27... Rxe1+ {[%clk 0:01:22.2]} 28. Kf2 {[%clk 0:00:31.3]} 28... Rf1+ {[%clk
0:01:09.3]} 29. Kxe3 {[%clk 0:00:31.2]} 29... Ra3+ {[%clk 0:00:44.1]} 30. Ke2
{[%clk 0:00:31.1]} 30... Rf5 {[%clk 0:00:35.4]} 31. Rxg7+ {[%clk 0:00:31.3]}
31... Kf8 {[%clk 0:00:35]} 32. Rh7 {[%clk 0:00:31]} 32... Rxa2+ {[%clk
0:00:28.7]} 33. Ke3 {[%clk 0:00:31.7]} 33... Ra3+ {[%clk 0:00:22.6]} 34. Ke4
{[%clk 0:00:32]} 1-0

[Event "Late-Titled-Tuesday-Blitz-February-27-2024"]
[Site "Chess.com"]
[Date "2024.02.27"]
[Round "5"]
[White "Aleksandar-Topalov"]
[Black "yaguigor"]
[Result "0-1"]
[WhiteElo "2371"]
[BlackElo "2628"]
[TimeControl "180+1"]
[EndTime "14:55:33 PST"]
[Termination "yaguigor won by resignation"]

1. b3 {[%clk 0:03:00.9]} 1... d5 {[%clk 0:02:51.9]} 2. Bb2 {[%clk 0:03:00.3]}
2... Bg4 {[%clk 0:02:50.8]} 3. g3 {[%clk 0:02:53.3]} 3... c6 {[%clk 0:02:47.7]}
4. Bg2 {[%clk 0:02:53.1]} 4... Nd7 {[%clk 0:02:47.3]} 5. Nf3 {[%clk 0:02:53]}
5... Ngf6 {[%clk 0:02:45.9]} 6. O-O {[%clk 0:02:52.7]} 6... e6 {[%clk
0:02:45.6]} 7. d3 {[%clk 0:02:52.6]} 7... Bd6 {[%clk 0:02:39.8]} 8. Nbd2 {[%clk
0:02:42.6]} 8... O-O {[%clk 0:02:34.2]} 9. e4 {[%clk 0:02:42.2]} 9... e5 {[%clk
0:02:30.9]} 10. exd5 {[%clk 0:02:33.6]} 10... cxd5 {[%clk 0:02:30.1]} 11. Re1
{[%clk 0:02:33.7]} 11... Re8 {[%clk 0:02:29.3]} 12. h3 {[%clk 0:02:33.6]} 12...
Bxf3 {[%clk 0:02:23.3]} 13. Nxf3 {[%clk 0:02:29.9]} 13... Qc7 {[%clk 0:02:11.7]}
14. c4 {[%clk 0:02:28.3]} 14... e4 {[%clk 0:02:06.3]} 15. dxe4 {[%clk
0:02:21.7]} 15... dxe4 {[%clk 0:02:05.2]} 16. Nd4 {[%clk 0:02:20.2]} 16... Be5
{[%clk 0:02:00.6]} 17. Nb5 {[%clk 0:02:18.5]} 17... Qc6 {[%clk 0:01:56.6]} 18.
Bxe5 {[%clk 0:02:10.3]} 18... Nxe5 {[%clk 0:01:48.3]} 19. Qd6 {[%clk 0:01:45.3]}
19... Rad8 {[%clk 0:01:44.7]} 20. Qxc6 {[%clk 0:01:39.4]} 20... bxc6 {[%clk
0:01:36.6]} 21. Nxa7 {[%clk 0:01:29.6]} 21... Rd7 {[%clk 0:01:30.5]} 22. Nxc6
{[%clk 0:01:03.1]} 22... Nxc6 {[%clk 0:01:29.4]} 23. Re3 {[%clk 0:01:01.4]}
23... Nd4 {[%clk 0:01:24]} 24. Rc1 {[%clk 0:00:51.9]} 24... Nf5 {[%clk
0:01:22.2]} 25. Re2 {[%clk 0:00:50.1]} 25... Nd4 {[%clk 0:01:19.2]} 26. Re3
{[%clk 0:00:47.8]} 26... Kf8 {[%clk 0:01:12.5]} 27. Kf1 {[%clk 0:00:47.6]} 27...
h5 {[%clk 0:01:04.7]} 28. c5 {[%clk 0:00:39.4]} 28... Nc6 {[%clk 0:00:59.9]} 29.
Rc4 {[%clk 0:00:36.2]} 29... Rd1+ {[%clk 0:00:48]} 30. Ke2 {[%clk 0:00:35.4]}
30... Ra1 {[%clk 0:00:47.3]} 31. Bxe4 {[%clk 0:00:29.6]} 31... Rxa2+ {[%clk
0:00:45.5]} 32. Kf1 {[%clk 0:00:29.7]} 32... Nxe4 {[%clk 0:00:38.5]} 33. Rexe4
{[%clk 0:00:29.6]} 33... Rxe4 {[%clk 0:00:38.7]} 34. Rxe4 {[%clk 0:00:29.7]}
34... Rb2 {[%clk 0:00:39.1]} 35. Re3 {[%clk 0:00:28.4]} 35... Rc2 {[%clk
0:00:38.8]} 0-1

[Event "Late-Titled-Tuesday-Blitz-February-27-2024"]
[Site "Chess.com"]
[Date "2024.02.27"]
[Round "5"]
[White "elchacal664"]
[Black "GoValya"]
[Result "1-0"]
[WhiteElo "2422"]
[BlackElo "2256"]
[TimeControl "180+1"]
[EndTime "14:55:34 PST"]
[Termination "elchacal664 won by checkmate"]

1. Nf3 {[%clk 0:03:00.9]} 1... Nf6 {[%clk 0:02:58.9]} 2. c4 {[%clk 0:02:56.6]}
2... c5 {[%clk 0:02:58]} 3. b3 {[%clk 0:02:55.6]} 3... g6 {[%clk 0:02:58.2]} 4.
Bb2 {[%clk 0:02:54.6]} 4... Bg7 {[%clk 0:02:58.8]} 5. e3 {[%clk 0:02:55.2]} 5...
O-O {[%clk 0:02:51.5]} 6. Be2 {[%clk 0:02:51.7]} 6... Nc6 {[%clk 0:02:50.7]} 7.
O-O {[%clk 0:02:50.9]} 7... d5 {[%clk 0:02:48.3]} 8. cxd5 {[%clk 0:02:51]} 8...
Nxd5 {[%clk 0:02:48.3]} 9. Bxg7 {[%clk 0:02:51.1]} 9... Kxg7 {[%clk 0:02:49.2]}
10. Qc2 {[%clk 0:02:50.5]} 10... b6 {[%clk 0:02:41.5]} 11. a3 {[%clk 0:02:47.1]}
11... Bb7 {[%clk 0:02:37.7]} 12. Nc3 {[%clk 0:02:42.2]} 12... Nf6 {[%clk
0:02:27.1]} 13. d3 {[%clk 0:02:32]} 13... Rc8 {[%clk 0:02:26.7]} 14. Qb2 {[%clk
0:02:30.5]} 14... Kg8 {[%clk 0:02:26.1]} 15. b4 {[%clk 0:02:30.5]} 15... cxb4
{[%clk 0:02:22]} 16. axb4 {[%clk 0:02:31.4]} 16... Qd6 {[%clk 0:02:18.5]} 17.
Nb5 {[%clk 0:02:14]} 17... Qxb4 {[%clk 0:02:03.9]} 18. Qxb4 {[%clk 0:02:13.8]}
18... Nxb4 {[%clk 0:02:04.8]} 19. Rxa7 {[%clk 0:02:14]} 19... Bxf3 {[%clk
0:01:41.7]} 20. Bxf3 {[%clk 0:02:13.8]} 20... Nxd3 {[%clk 0:01:28.2]} 21. Rxe7
{[%clk 0:02:11.8]} 21... Rfe8 {[%clk 0:01:12.1]} 22. Rb7 {[%clk 0:02:10.8]}
22... Re6 {[%clk 0:01:07.6]} 23. Nd4 {[%clk 0:02:07.8]} 23... Rd6 {[%clk
0:01:04.1]} 24. h4 {[%clk 0:01:59.2]} 24... Nc5 {[%clk 0:01:03.5]} 25. Ra7
{[%clk 0:01:56.8]} 25... h5 {[%clk 0:01:01.3]} 26. Rb1 {[%clk 0:01:55.4]} 26...
Nfe4 {[%clk 0:00:50.8]} 27. Bxe4 {[%clk 0:01:46.8]} 27... Nxe4 {[%clk
0:00:51.7]} 28. Rb7 {[%clk 0:01:46.8]} 28... Kg7 {[%clk 0:00:41]} 29. f3 {[%clk
0:01:42.7]} 29... Nc3 {[%clk 0:00:32.5]} 30. R1xb6 {[%clk 0:01:42]} 30... Rxb6
{[%clk 0:00:28.7]} 31. Rxb6 {[%clk 0:01:42.9]} 31... Nd5 {[%clk 0:00:28.6]} 32.
Rb3 {[%clk 0:01:41.3]} 32... Kf6 {[%clk 0:00:26.3]} 33. Ne2 {[%clk 0:01:35.6]}
33... Rc2 {[%clk 0:00:24.8]} 34. Kf2 {[%clk 0:01:32.9]} 34... Ra2 {[%clk
0:00:21.2]} 35. g3 {[%clk 0:01:30.4]} 35... Ke6 {[%clk 0:00:21]} 36. e4 {[%clk
0:01:29.9]} 36... Nf6 {[%clk 0:00:20.2]} 37. Ke3 {[%clk 0:01:29.6]} 37... Nd7
{[%clk 0:00:19]} 38. Nd4+ {[%clk 0:01:25.6]} 38... Ke7 {[%clk 0:00:18.7]} 39. f4
{[%clk 0:01:22.3]} 39... Nc5 {[%clk 0:00:17.7]} 40. Rc3 {[%clk 0:01:21.9]} 40...
Nd7 {[%clk 0:00:17.3]} 41. e5 {[%clk 0:01:21.5]} 41... Rg2 {[%clk 0:00:16.5]}
42. Kf3 {[%clk 0:01:20.3]} 42... Ra2 {[%clk 0:00:16.3]} 43. Nc6+ {[%clk
0:01:17.2]} 43... Ke6 {[%clk 0:00:14.8]} 44. Rd3 {[%clk 0:01:16.6]} 44... Nc5
{[%clk 0:00:10.2]} 45. Rd6+ {[%clk 0:01:15.8]} 45... Kf5 {[%clk 0:00:08.2]} 46.
Rf6# {[%clk 0:01:16.7]} 1-0

[Event "Late-Titled-Tuesday-Blitz-February-27-2024"]
[Site "Chess.com"]
[Date "2024.02.27"]
[Round "5"]
[White "TanitoluwaAps116"]
[Black "GothamChess"]
[Result "1-0"]
[WhiteElo "2899"]
[BlackElo "2677"]
[TimeControl "180+1"]
[EndTime "14:55:35 PST"]
[Termination "TanitoluwaAps116 won by resignation"]

1. e4 {[%clk 0:03:00.9]} 1... d5 {[%clk 0:02:59.8]} 2. exd5 {[%clk 0:03:00.3]}
2... Qxd5 {[%clk 0:03:00.7]} 3. Nc3 {[%clk 0:02:58.9]} 3... Qa5 {[%clk
0:03:00.6]} 4. d4 {[%clk 0:02:58.7]} 4... Nf6 {[%clk 0:03:00.4]} 5. Nf3 {[%clk
0:02:57.8]} 5... Bf5 {[%clk 0:03:00]} 6. Ne5 {[%clk 0:02:56]} 6... c6 {[%clk
0:02:59.9]} 7. Bc4 {[%clk 0:02:56.3]} 7... e6 {[%clk 0:02:58.8]} 8. g4 {[%clk
0:02:56.5]} 8... Bg6 {[%clk 0:02:57.6]} 9. h4 {[%clk 0:02:56.8]} 9... Nbd7
{[%clk 0:02:57.6]} 10. Nxd7 {[%clk 0:02:42.6]} 10... Nxd7 {[%clk 0:02:57]} 11.
Bd2 {[%clk 0:02:35.4]} 11... h5 {[%clk 0:02:46.5]} 12. Qe2 {[%clk 0:02:00.6]}
12... Bb4 {[%clk 0:02:24.6]} 13. O-O-O {[%clk 0:01:47.3]} 13... O-O-O {[%clk
0:02:15.7]} 14. a3 {[%clk 0:01:38.4]} 14... Bxa3 {[%clk 0:01:49.4]} 15. Nd5
{[%clk 0:00:50.1]} 15... Qa4 {[%clk 0:01:02.9]} 16. Bb3 {[%clk 0:00:45.6]} 16...
Qxd4 {[%clk 0:00:59.2]} 17. Bc3 {[%clk 0:00:34]} 17... Qxg4 {[%clk 0:00:42]} 18.
f3 {[%clk 0:00:32.1]} 18... Qf5 {[%clk 0:00:34.4]} 19. Ne3 {[%clk 0:00:28.2]}
19... Qc5 {[%clk 0:00:17.6]} 20. Bd4 {[%clk 0:00:28.6]} 20... Qa5 {[%clk
0:00:07.5]} 21. Nc4 {[%clk 0:00:23.8]} 21... Bxb2+ {[%clk 0:00:03.9]} 22. Kxb2
{[%clk 0:00:24.7]} 22... Qc7 {[%clk 0:00:03.8]} 23. Bxa7 {[%clk 0:00:19.6]}
23... b5 {[%clk 0:00:03.1]} 24. Nd6+ {[%clk 0:00:19.5]} 1-0

[Event "Late-Titled-Tuesday-Blitz-February-27-2024"]
[Site "Chess.com"]
[Date "2024.02.27"]
[Round "5"]
[White "Mr_Heisenberg13"]
[Black "DishonorOnYourCow"]
[Result "1-0"]
[WhiteElo "2827"]
[BlackElo "2592"]
[TimeControl "180+1"]
[EndTime "14:55:38 PST"]
[Termination "Mr_Heisenberg13 won by resignation"]

1. e4 {[%clk 0:03:00.9]} 1... c5 {[%clk 0:02:59.7]} 2. Nf3 {[%clk 0:03:00.5]}
2... d6 {[%clk 0:03:00.3]} 3. d4 {[%clk 0:03:00]} 3... cxd4 {[%clk 0:03:01.2]}
4. Nxd4 {[%clk 0:03:00.2]} 4... Nf6 {[%clk 0:03:01.9]} 5. Nc3 {[%clk 0:03:00.5]}
5... a6 {[%clk 0:03:02.5]} 6. Bd2 {[%clk 0:03:00.5]} 6... e5 {[%clk 0:02:58.9]}
7. Nf5 {[%clk 0:03:00]} 7... d5 {[%clk 0:02:51.1]} 8. Qf3 {[%clk 0:02:59.4]}
8... d4 {[%clk 0:02:43.1]} 9. Nd5 {[%clk 0:02:59.9]} 9... Bxf5 {[%clk
0:02:34.8]} 10. Nxf6+ {[%clk 0:02:58.3]} 10... Qxf6 {[%clk 0:02:35]} 11. exf5
{[%clk 0:02:58.8]} 11... Qc6 {[%clk 0:02:35.2]} 12. Qxc6+ {[%clk 0:02:49.6]}
12... Nxc6 {[%clk 0:02:36.1]} 13. Bd3 {[%clk 0:02:49.7]} 13... Bd6 {[%clk
0:02:35.8]} 14. Be4 {[%clk 0:02:49.4]} 14... O-O-O {[%clk 0:02:32.3]} 15. Ke2
{[%clk 0:02:47.3]} 15... Kc7 {[%clk 0:02:32]} 16. c3 {[%clk 0:02:46.5]} 16... g6
{[%clk 0:02:25.6]} 17. Rac1 {[%clk 0:02:40.1]} 17... gxf5 {[%clk 0:02:11.6]} 18.
Bxf5 {[%clk 0:02:41]} 18... Rde8 {[%clk 0:02:09.2]} 19. Be4 {[%clk 0:02:39.3]}
19... Kb6 {[%clk 0:01:54.1]} 20. g4 {[%clk 0:02:37.2]} 20... h5 {[%clk 0:01:53]}
21. h3 {[%clk 0:02:36.5]} 21... hxg4 {[%clk 0:01:51.8]} 22. hxg4 {[%clk
0:02:37.4]} 22... Reg8 {[%clk 0:01:37.3]} 23. Rh5 {[%clk 0:02:24.2]} 23... dxc3
{[%clk 0:01:17]} 24. bxc3 {[%clk 0:02:23]} 24... Rc8 {[%clk 0:01:11.2]} 25. Rch1
{[%clk 0:02:14.8]} 25... Rhg8 {[%clk 0:01:05.8]} 26. f3 {[%clk 0:02:14.5]} 26...
Na5 {[%clk 0:00:50.7]} 27. Rf5 {[%clk 0:01:52.5]} 27... Rgf8 {[%clk 0:00:32.8]}
28. Rh7 {[%clk 0:01:33.5]} 28... f6 {[%clk 0:00:20.5]} 29. Rh6 {[%clk 0:01:26]}
29... Be7 {[%clk 0:00:19.6]} 30. g5 {[%clk 0:01:24.6]} 30... Nc4 {[%clk
0:00:18.2]} 31. gxf6 {[%clk 0:01:24.3]} 31... Bc5 {[%clk 0:00:18.5]} 32. Bc1
{[%clk 0:01:19.9]} 32... Ka5 {[%clk 0:00:14.9]} 33. f7 {[%clk 0:01:15.7]} 33...
Nd6 {[%clk 0:00:13.7]} 34. Rxe5 {[%clk 0:01:15.9]} 34... Nxe4 {[%clk 0:00:13.5]}
35. fxe4 {[%clk 0:01:11]} 35... b5 {[%clk 0:00:13.8]} 36. Ree6 {[%clk
0:01:08.6]} 36... b4 {[%clk 0:00:10.3]} 37. c4 {[%clk 0:01:06.7]} 37... Ra8
{[%clk 0:00:06.5]} 38. Rhf6 {[%clk 0:01:06.6]} 38... Bd4 {[%clk 0:00:06]} 39.
Rf5+ {[%clk 0:01:06.7]} 39... Ka4 {[%clk 0:00:06.6]} 40. Bh6 {[%clk 0:01:04.7]}
40... b3 {[%clk 0:00:04.3]} 41. axb3+ {[%clk 0:01:04.1]} 41... Kxb3 {[%clk
0:00:04.5]} 42. Bxf8 {[%clk 0:01:04.2]} 42... Rxf8 {[%clk 0:00:04.9]} 43. Re8
{[%clk 0:01:04.4]} 1-0

[Event "Late-Titled-Tuesday-Blitz-February-27-2024"]
[Site "Chess.com"]
[Date "2024.02.27"]
[Round "5"]
[White "lucasmito"]
[Black "sotochess"]
[Result "0-1"]
[WhiteElo "2837"]
[BlackElo "2658"]
[TimeControl "180+1"]
[EndTime "14:55:41 PST"]
[Termination "sotochess won on time"]

1. e4 {[%clk 0:03:00.9]} 1... d5 {[%clk 0:02:59.4]} 2. exd5 {[%clk 0:03:00.7]}
2... Qxd5 {[%clk 0:02:56.4]} 3. Nc3 {[%clk 0:03:00.9]} 3... Qa5 {[%clk
0:02:56.3]} 4. Nf3 {[%clk 0:02:59.4]} 4... Nf6 {[%clk 0:02:55.9]} 5. d4 {[%clk
0:02:59]} 5... c6 {[%clk 0:02:55.8]} 6. Bc4 {[%clk 0:02:54.2]} 6... Bg4 {[%clk
0:02:54.9]} 7. Bd2 {[%clk 0:02:29.6]} 7... Nbd7 {[%clk 0:02:45.5]} 8. Qe2 {[%clk
0:01:57.2]} 8... Qb6 {[%clk 0:02:39.2]} 9. O-O-O {[%clk 0:01:52.3]} 9... Bxf3
{[%clk 0:02:38]} 10. Qxf3 {[%clk 0:01:53.2]} 10... Qxd4 {[%clk 0:02:38]} 11. Bb3
{[%clk 0:01:47.4]} 11... Nc5 {[%clk 0:02:37.3]} 12. Be3 {[%clk 0:01:44.5]} 12...
Nxb3+ {[%clk 0:02:34.6]} 13. axb3 {[%clk 0:01:44.5]} 13... Qg4 {[%clk
0:02:34.8]} 14. Qxg4 {[%clk 0:01:33.5]} 14... Nxg4 {[%clk 0:02:34]} 15. Bd4
{[%clk 0:01:32.9]} 15... e6 {[%clk 0:02:26.3]} 16. h3 {[%clk 0:01:32.9]} 16...
Nf6 {[%clk 0:02:26]} 17. Rhe1 {[%clk 0:01:33.2]} 17... Be7 {[%clk 0:02:24.6]}
18. g4 {[%clk 0:01:27.8]} 18... a6 {[%clk 0:02:21.7]} 19. f4 {[%clk 0:01:28]}
19... O-O-O {[%clk 0:01:59]} 20. f5 {[%clk 0:01:22.6]} 20... Rd6 {[%clk
0:01:50.8]} 21. Bxf6 {[%clk 0:01:11.7]} 21... Rxd1+ {[%clk 0:01:49.5]} 22. Nxd1
{[%clk 0:01:12.3]} 22... Bxf6 {[%clk 0:01:48.5]} 23. fxe6 {[%clk 0:01:13]} 23...
fxe6 {[%clk 0:01:46.1]} 24. Rxe6 {[%clk 0:01:13.9]} 24... h5 {[%clk 0:01:45.4]}
25. Nc3 {[%clk 0:00:55.3]} 25... hxg4 {[%clk 0:01:44.5]} 26. hxg4 {[%clk
0:00:56.2]} 26... Rh1+ {[%clk 0:01:41.9]} 27. Kd2 {[%clk 0:00:55.3]} 27... Kd7
{[%clk 0:01:36.2]} 28. Re4 {[%clk 0:00:51.5]} 28... Rg1 {[%clk 0:01:31.8]} 29.
Ne2 {[%clk 0:00:49.7]} 29... Rb1 {[%clk 0:01:24.8]} 30. Nc3 {[%clk 0:00:28.7]}
30... Rf1 {[%clk 0:01:14.3]} 31. b4 {[%clk 0:00:23.1]} 31... Kd6 {[%clk
0:01:05.7]} 32. b3 {[%clk 0:00:23]} 32... Rf2+ {[%clk 0:01:03.3]} 33. Ne2 {[%clk
0:00:20.5]} 33... Bg5+ {[%clk 0:01:01.1]} 34. Kd3 {[%clk 0:00:20.7]} 34... Rf3+
{[%clk 0:01:01]} 35. Kc4 {[%clk 0:00:07.8]} 35... b5+ {[%clk 0:01:01]} 36. Kd4
{[%clk 0:00:03.1]} 36... Bf6+ {[%clk 0:01:01.1]} 37. Re5 {[%clk 0:00:03.6]}
37... Bxe5+ {[%clk 0:01:01.1]} 38. Ke4 {[%clk 0:00:04.5]} 38... Rf2 {[%clk
0:01:00.9]} 0-1

[Event "Late-Titled-Tuesday-Blitz-February-27-2024"]
[Site "Chess.com"]
[Date "2024.02.27"]
[Round "5"]
[White "PepeCuenca"]
[Black "tandaleo"]
[Result "1-0"]
[WhiteElo "2713"]
[BlackElo "2497"]
[TimeControl "180+1"]
[EndTime "14:55:42 PST"]
[Termination "PepeCuenca won by resignation"]

1. d4 {[%clk 0:03:00.9]} 1... d5 {[%clk 0:02:50.5]} 2. Bf4 {[%clk 0:03:00.7]}
2... Nf6 {[%clk 0:02:45.5]} 3. e3 {[%clk 0:03:00.9]} 3... e6 {[%clk 0:02:45.2]}
4. Nf3 {[%clk 0:03:00.1]} 4... Bd6 {[%clk 0:02:45.8]} 5. Ne5 {[%clk 0:03:00.3]}
5... b6 {[%clk 0:02:40]} 6. Nd2 {[%clk 0:02:57.2]} 6... Bb7 {[%clk 0:02:39.6]}
7. Bd3 {[%clk 0:02:44.7]} 7... O-O {[%clk 0:02:37.8]} 8. Qf3 {[%clk 0:02:39.6]}
8... h6 {[%clk 0:01:50.8]} 9. h4 {[%clk 0:02:21.5]} 9... Nbd7 {[%clk 0:01:44.1]}
10. g4 {[%clk 0:02:14.7]} 10... Bxe5 {[%clk 0:01:43.8]} 11. dxe5 {[%clk
0:02:13.1]} 11... Ne4 {[%clk 0:01:44.2]} 12. Nxe4 {[%clk 0:02:08]} 12... dxe4
{[%clk 0:01:44.1]} 13. Bxe4 {[%clk 0:02:08.7]} 13... Bxe4 {[%clk 0:01:43.9]} 14.
Qxe4 {[%clk 0:02:09.6]} 14... Nc5 {[%clk 0:01:43.6]} 15. Qc6 {[%clk 0:01:59.2]}
15... Qe7 {[%clk 0:01:05.4]} 16. O-O-O {[%clk 0:01:53.3]} 16... Rad8 {[%clk
0:01:05.4]} 17. g5 {[%clk 0:01:46.7]} 17... h5 {[%clk 0:01:05]} 18. Rd4 {[%clk
0:01:39]} 18... g6 {[%clk 0:00:58.8]} 19. Rhd1 {[%clk 0:01:37]} 19... a5 {[%clk
0:00:35.4]} 20. Bg3 {[%clk 0:01:08.2]} 20... Na6 {[%clk 0:00:31.9]} 21. a3
{[%clk 0:00:58.4]} 21... Rxd4 {[%clk 0:00:16.8]} 22. Rxd4 {[%clk 0:00:51.4]}
22... Rd8 {[%clk 0:00:16.9]} 23. f4 {[%clk 0:00:37.2]} 23... Nc5 {[%clk
0:00:05.9]} 24. Be1 {[%clk 0:00:33.8]} 24... Rd7 {[%clk 0:00:05.5]} 25. b4
{[%clk 0:00:23.9]} 25... axb4 {[%clk 0:00:05]} 26. axb4 {[%clk 0:00:23.9]} 26...
Rxd4 {[%clk 0:00:04.6]} 27. exd4 {[%clk 0:00:24.6]} 27... Na6 {[%clk 0:00:05]}
28. Qa8+ {[%clk 0:00:24.3]} 1-0

[Event "Late-Titled-Tuesday-Blitz-February-27-2024"]
[Site "Chess.com"]
[Date "2024.02.27"]
[Round "5"]
[White "kripri"]
[Black "Boorchess"]
[Result "0-1"]
[WhiteElo "2348"]
[BlackElo "2526"]
[TimeControl "180+1"]
[EndTime "14:55:43 PST"]
[Termination "Boorchess won by checkmate"]

1. e4 {[%clk 0:02:56.5]} 1... e5 {[%clk 0:02:55.4]} 2. Nf3 {[%clk 0:02:56.5]}
2... Nf6 {[%clk 0:02:55.3]} 3. Nxe5 {[%clk 0:02:56.4]} 3... d6 {[%clk
0:02:50.9]} 4. Nf3 {[%clk 0:02:56]} 4... Nxe4 {[%clk 0:02:50.4]} 5. d4 {[%clk
0:02:55.3]} 5... d5 {[%clk 0:02:49.8]} 6. Bd3 {[%clk 0:02:55.5]} 6... Be7 {[%clk
0:02:49.6]} 7. O-O {[%clk 0:02:55.9]} 7... Nc6 {[%clk 0:02:49.5]} 8. c3 {[%clk
0:02:55.5]} 8... Bg4 {[%clk 0:02:48.3]} 9. Re1 {[%clk 0:02:49.5]} 9... f5 {[%clk
0:02:46.5]} 10. Be2 {[%clk 0:02:43.1]} 10... O-O {[%clk 0:02:40.6]} 11. Nbd2
{[%clk 0:02:41]} 11... Bd6 {[%clk 0:02:38.5]} 12. Nf1 {[%clk 0:02:38.6]} 12...
Qf6 {[%clk 0:02:22.2]} 13. Ne3 {[%clk 0:02:34.6]} 13... Ne7 {[%clk 0:02:04.4]}
14. h3 {[%clk 0:02:30.5]} 14... Bxh3 {[%clk 0:01:46.9]} 15. gxh3 {[%clk
0:02:28.1]} 15... Qg6+ {[%clk 0:01:45.2]} 16. Kf1 {[%clk 0:02:20.9]} 16... Nxf2
{[%clk 0:01:31.2]} 17. Kxf2 {[%clk 0:02:18.5]} 17... Qg3+ {[%clk 0:01:29.8]} 18.
Kf1 {[%clk 0:02:17.5]} 18... Qxh3+ {[%clk 0:01:21]} 19. Ng2 {[%clk 0:02:17.3]}
19... Bg3 {[%clk 0:01:15.6]} 20. Kg1 {[%clk 0:01:56]} 20... f4 {[%clk
0:01:02.3]} 21. Rf1 {[%clk 0:01:53.6]} 21... Nf5 {[%clk 0:00:58.7]} 22. Qd3
{[%clk 0:01:36.1]} 22... Rae8 {[%clk 0:00:50.7]} 23. Bd2 {[%clk 0:01:23.9]}
23... Ne3 {[%clk 0:00:35]} 24. Bxe3 {[%clk 0:01:22]} 24... fxe3 {[%clk
0:00:33.9]} 25. Nge1 {[%clk 0:00:57.3]} 25... Rf4 {[%clk 0:00:20.4]} 26. Qc2
{[%clk 0:00:21.4]} 26... Rg4 {[%clk 0:00:19.4]} 27. Ng2 {[%clk 0:00:11.6]} 27...
Bh2+ {[%clk 0:00:17.5]} 28. Nxh2 {[%clk 0:00:09.7]} 28... Qxg2# {[%clk
0:00:17.7]} 0-1